fUSD/lending_fUSD_20240119
["ID","MTS","AMOUNT","RATE_DAILY","PERIOD"]
[312122977,1705650641212,-385.33,0.0002696,2]
[312122979,1705650641221,-416.1194,0.00027,2]
[312122981,1705650641230,-155.0,0.00027,2]
[312122982,1705650641239,-488.77476355,0.00027186,2]
[312122983,1705650641247,-250.0,0.000272,2]
[312122984,1705650641257,-6952.72031411,0.000272,2]
[312122985,1705650641266,-150.0,0.000272,2]
[312122986,1705650641275,-150.0,0.000272,2]
[312122987,1705650641284,-150.0,0.000272,2]
[312122988,1705650641293,-7178.38476164,0.00027321,2]
[312122989,1705650641302,-155.0,0.00027397,2]
[312122991,1705650641311,-200.0,0.00027397,5]
[312122993,1705650641320,-1783.36,0.00027397,2]
[312122995,1705650641330,-152.15,0.00027397,2]
[312122997,1705650641339,-157.22,0.00027397,2]
[312122999,1705650641348,-8000.0,0.000274,2]
[312123001,1705650641357,-250.0,0.00027474,2]
[312123003,1705650641370,-154.57593042,0.00027494,2]
[312123005,1705650641380,-167.0,0.00027505,2]
[312123007,1705650641389,-500.0,0.00027522,2]
[312123009,1705650641397,-500.0,0.00027522,2]
[312123011,1705650641407,-3628674.7389789,0.00027522,3]
[312123013,1705650641416,-500.0,0.00027522,2]
[312123015,1705650641425,-500.0,0.00027522,2]
[312123017,1705650641434,-500.0,0.00027522,2]
[312123019,1705650641443,-500.0,0.00027522,2]
[312123021,1705650641453,-500.0,0.00027522,2]
[312123023,1705650641463,-500.0,0.00027522,2]
[312123025,1705650641472,-500.0,0.00027522,2]
[312123027,1705650641481,-500.0,0.00027522,2]
[312123029,1705650641491,-500.0,0.00027522,2]
[312123031,1705650641500,-500.0,0.00027522,2]
[312123033,1705650641510,-500.0,0.00027522,2]
[312123035,1705650641519,-500.0,0.00027522,2]
[312123037,1705650641528,-500.0,0.00027522,2]
[312123039,1705650641537,-500.0,0.00027522,2]
[312123041,1705650641546,-500.0,0.00027522,2]
[312123043,1705650641555,-500.0,0.00027522,2]
[312123045,1705650641564,-500.0,0.00027522,2]
[312123047,1705650641573,-500.0,0.00027522,2]
[312123049,1705650641583,-500.0,0.00027522,2]
[312123051,1705650641591,-500.0,0.00027522,2]
[312123053,1705650641600,-500.0,0.00027522,2]
[312123055,1705650641610,-500.0,0.00027522,2]
[312123057,1705650641622,-500.0,0.00027522,2]
[312123059,1705650641631,-500.0,0.00027522,2]
[312123061,1705650641640,-500.0,0.00027522,2]
[312123063,1705650641649,-500.0,0.00027522,2]
[312123065,1705650641658,-500.0,0.00027522,2]
[312123067,1705650641667,-500.0,0.00027522,2]
[312123069,1705650641676,-500.0,0.00027522,2]
[312123071,1705650641686,-500.0,0.00027522,2]
[312123073,1705650641695,-500.0,0.00027522,2]
[312123075,1705650641704,-500.0,0.00027522,2]
[312123077,1705650641713,-500.0,0.00027522,2]
[312123080,1705650641722,-500.0,0.00027522,2]
[312123082,1705650641731,-500.0,0.00027522,2]
[312123083,1705650641740,-500.0,0.00027522,2]
[312123085,1705650641749,-500.0,0.00027522,2]
[312123087,1705650641758,-500.0,0.00027522,2]
[312123089,1705650641768,-500.0,0.00027522,2]
[312123092,1705650641777,-500.0,0.00027522,2]
[312123093,1705650641787,-500.0,0.00027522,2]
[312123095,1705650641796,-500.0,0.00027522,2]
[312123097,1705650641805,-500.0,0.00027522,2]
[312123099,1705650641814,-500.0,0.00027522,2]
[312123102,1705650641823,-500.0,0.00027522,2]
[312123103,1705650641832,-500.0,0.00027522,2]
[312123105,1705650641841,-500.0,0.00027522,2]
[312123108,1705650641851,-500.0,0.00027522,2]
[312123110,1705650641860,-500.0,0.00027522,2]
[312123112,1705650641871,-500.0,0.00027522,2]
[312123114,1705650641881,-500.0,0.00027522,2]
[312123116,1705650641890,-500.0,0.00027522,2]
[312123118,1705650641899,-500.0,0.00027522,2]
[312123120,1705650641909,-500.0,0.00027522,2]
[312123122,1705650641917,-500.0,0.00027522,2]
[312123124,1705650641926,-500.0,0.00027522,2]
[312123125,1705650641935,-500.0,0.00027522,2]
[312123127,1705650641944,-500.0,0.00027522,2]
[312123129,1705650641953,-500.0,0.00027522,2]
[312123131,1705650641962,-500.0,0.00027522,2]
[312123133,1705650641972,-500.0,0.00027522,2]
[312123136,1705650641981,-500.0,0.00027522,2]
[312123138,1705650641990,-500.0,0.00027522,2]
[312123139,1705650641999,-500.0,0.00027522,2]
[312123141,1705650642008,-500.0,0.00027522,2]
[312123144,1705650642018,-500.0,0.00027522,2]
[312123146,1705650642027,-500.0,0.00027522,2]
[312123147,1705650642036,-500.0,0.00027522,2]
[312123149,1705650642045,-500.0,0.00027522,2]
[312123151,1705650642054,-500.0,0.00027522,2]
[312123153,1705650642063,-500.0,0.00027522,2]
[312123155,1705650642072,-500.0,0.00027522,2]
[312123157,1705650642081,-500.0,0.00027522,2]
[312123159,1705650642090,-500.0,0.00027522,2]
[312123161,1705650642099,-500.0,0.00027522,2]
[312123163,1705650642108,-500.0,0.00027522,2]
[312123166,1705650642121,-500.0,0.00027522,2]
[312123168,1705650642133,-500.0,0.00027522,2]
[312123170,1705650642143,-500.0,0.00027522,2]
[312123172,1705650642152,-1000.0,0.00027522,2]
[312123174,1705650642161,-488.77476355,0.00027543,2]
[312123176,1705650642170,-322.90099813,0.00027709,2]
[312123178,1705650642183,-1000.0,0.00027709,2]
[312123180,1705650642193,-2904.47721536,0.0002773,3]
[312123182,1705650642202,-250.0,0.00027748,2]
[312123184,1705650642211,-150.0,0.00027748,2]
[312123186,1705650642220,-150.0,0.00027748,2]
[312123188,1705650642229,-176.33,0.000278,2]
[312123190,1705650642238,-3100.0,0.000278,10]
[312123192,1705650642247,-3800.0,0.000279,10]
[312123195,1705650642258,-457.32864088,0.000279,14]
[312123197,1705650642268,-488.77476355,0.000279,2]
[312123199,1705650642277,-385.33,0.00027938,2]
[312123201,1705650642286,-200.0,0.00027945,5]
[312123203,1705650642296,-176.2545833,0.00027981,2]
[312123205,1705650642305,-176.2545833,0.00027981,2]
[312123207,1705650642314,-176.2545833,0.00027981,2]
[312123208,1705650642323,-150.77564097,0.0002799,2]
[312123210,1705650642332,-203.09146154,0.00028,2]
[312123212,1705650642341,-688.92857397,0.00028,2]
[312123214,1705650642351,-700.0,0.00028,3]
[312123216,1705650642361,-22221.99970979,0.00028,2]
[312123219,1705650642374,-251.42916586,0.00028022,2]
[312123220,1705650642383,-7178.38476164,0.00028169,2]
[312123223,1705650642393,-55555.0,0.00028179,2]
[312123225,1705650642401,-500.0,0.000282,2]
[312123227,1705650642410,-191.31,0.00028201,2]
[312123229,1705650642419,-157.22,0.00028253,2]
[312123231,1705650642428,-150.87385645,0.00028296,2]
[312123233,1705650642437,-235.89308219,0.00028296,2]
[312123235,1705650642446,-167.0,0.00028307,2]
[312123237,1705650642455,-280.29547597,0.00028348,2]
[312123239,1705650642464,-150.0,0.00028451,2]
[312123241,1705650642474,-200.0,0.00028493,5]
[312123243,1705650642483,-154.57593042,0.00028514,2]
[312123245,1705650642492,-1008.17143689,0.00028514,2]
[312123247,1705650642501,-500.0,0.00028758,2]
[312123249,1705650642511,-213.022765,0.00028758,3]
[312123250,1705650642520,-200.0,0.00028758,2]
[312123253,1705650642529,-800.0,0.00028758,7]
[312123255,1705650642538,-155.0,0.00028767,2]
[312123257,1705650642547,-1783.36,0.00028767,2]
[312123259,1705650642556,-7770.0,0.000288,2]
[312123261,1705650642565,-157.066317,0.0002888,2]
[312123263,1705650642574,-700.0,0.000289,10]
[312123264,1705650642583,-385.33,0.00028917,2]
[312123266,1705650642592,-325.20026508,0.00029,2]
[312123268,1705650642601,-325.20026508,0.00029,2]
[312123270,1705650642610,-325.20026508,0.00029,2]
[312123272,1705650642626,-325.20026508,0.00029,2]
[312123274,1705650642635,-325.20026508,0.00029,2]
[312123276,1705650642645,-325.20026508,0.00029,2]
[312123279,1705650642655,-325.20026508,0.00029,2]
[312123281,1705650642665,-325.20026508,0.00029,2]
[312123283,1705650642674,-325.20026508,0.00029,2]
[312123285,1705650642683,-325.20026508,0.00029,2]
[312123287,1705650642692,-325.20026508,0.00029,2]
[312123289,1705650642701,-325.20026508,0.00029,2]
[312123291,1705650642710,-325.20026508,0.00029,2]
[312123292,1705650642719,-325.20026508,0.00029,2]
[312123295,1705650642729,-325.20026508,0.00029,2]
[312123297,1705650642739,-325.20026508,0.00029,2]
[312123299,1705650642748,-325.20026508,0.00029,2]
[312123301,1705650642757,-325.20026508,0.00029,2]
[312123303,1705650642766,-325.20026508,0.00029,2]
[312123305,1705650642775,-325.20026508,0.00029,2]
[312123307,1705650642784,-325.20026508,0.00029,2]
[312123308,1705650642793,-325.20026508,0.00029,2]
[312123309,1705650642802,-325.20026508,0.00029,2]
[312123310,1705650642811,-325.20026508,0.00029,2]
[312123311,1705650642819,-325.20026508,0.00029,2]
[312123312,1705650642828,-325.20026508,0.00029,2]
[312123313,1705650642837,-325.20026508,0.00029,2]
[312123314,1705650642846,-325.20026508,0.00029,2]
[312123315,1705650642855,-325.20026508,0.00029,2]
[312123317,1705650642864,-325.20026508,0.00029,2]
[312123319,1705650642875,-325.20026508,0.00029,2]
[312123321,1705650642885,-325.20026508,0.00029,2]
[312123323,1705650642894,-325.20026508,0.00029,2]
[312123325,1705650642903,-325.20026508,0.00029,2]
[312123327,1705650642912,-325.20026508,0.00029,2]
[312123329,1705650642921,-325.20026508,0.00029,2]
[312123331,1705650642931,-325.20026508,0.00029,2]
[312123333,1705650642940,-325.20026508,0.00029,2]
[312123335,1705650642950,-325.20026508,0.00029,2]
[312123338,1705650642960,-325.20026508,0.00029,2]
[312123339,1705650642970,-325.20026508,0.00029,2]
[312123341,1705650642979,-325.20026508,0.00029,2]
[312123343,1705650642988,-325.20026508,0.00029,2]
[312123346,1705650642998,-325.20026508,0.00029,2]
[312123347,1705650643007,-325.20026508,0.00029,2]
[312123350,1705650643018,-325.20026508,0.00029,2]
[312123352,1705650643029,-325.20026508,0.00029,2]
[312123354,1705650643039,-325.20026508,0.00029,2]
[312123356,1705650643049,-325.20026508,0.00029,2]
[312123357,1705650643058,-325.20026508,0.00029,2]
[312123360,1705650643069,-7178.38476164,0.00029017,2]
[312123362,1705650643078,-354.44429429,0.00029041,5]
[312123364,1705650643087,-157.22,0.0002911,2]
[312123366,1705650643097,-200.3099297,0.00029153,2]
[312123368,1705650643107,-508.90507024,0.00029167,2]
[312123370,1705650643118,-200.0,0.00029167,2]
[312123372,1705650643127,-155.0,0.00029167,2]
[312123374,1705650643137,-3195.74582437,0.00029167,2]
[312123376,1705650643146,-155.0,0.000295,3]
[312123378,1705650643155,-154.57593042,0.00029535,2]
[312123380,1705650643164,-2904.47721536,0.00029608,4]
[312123382,1705650643173,-457.32864088,0.00029685,16]
[312123384,1705650643184,-4908.32082205,0.000297,2]
[312123386,1705650643193,-154.0,0.000297,2]
[312123388,1705650643203,-168.0,0.000297,2]
[312123389,1705650643214,-731.00118582,0.000298,2]
[312123392,1705650643223,-175.53477605,0.000298,2]
[312123393,1705650643234,-7178.38476164,0.00029865,2]
[312123396,1705650643243,-385.33,0.00029895,2]
[312123398,1705650643253,-151.0,0.00029898,30]
[312123400,1705650643263,-205.0,0.00029902,12]
[312123402,1705650643272,-157.22,0.00029966,2]
[312123404,1705650643282,-400.0,0.0002997,2]
[312123406,1705650643291,-150.0,0.00029999,2]
[312123408,1705650643300,-150.0,0.00029999,2]
[312123410,1705650643309,-155.0,0.0003,4]
[312123412,1705650643318,-1806.73038291,0.0003,4]
[312123414,1705650643327,-582.6484227,0.0003,2]
[312123416,1705650643336,-2166.32077299,0.0003,4]
[312123418,1705650643346,-2552.98447335,0.0003,4]
[312123420,1705650643355,-19085.2778721,0.0003,4]
[312123421,1705650643364,-309.88993385,0.0003,4]
[312123424,1705650643376,-6507.69212777,0.0003,4]
[312123426,1705650643393,-42815.754127,0.0003,4]
[312123428,1705650643402,-155.0,0.0003,2]
[312123431,1705650643412,-26674.82574222,0.0003,4]
[312123433,1705650643421,-308924.89142697,0.0003,4]
[312123435,1705650643430,-691.92895757,0.0003,2]
[312123437,1705650643439,-9639.56910486,0.0003,2]
[312123439,1705650643448,-750.0,0.0003,3]
[312123441,1705650643457,-379.8326151,0.0003,2]
[312123442,1705650643466,-200.0,0.0003,2]
[312123444,1705650643476,-257.89401163,0.0003,2]
[312123447,1705650643486,-361.90503468,0.0003,4]
[312123448,1705650643495,-523.68952343,0.0003,4]
[312123450,1705650643505,-905.6449554,0.0003,4]
[312123453,1705650643514,-369.23925738,0.0003,4]
[312123455,1705650643523,-468.53538178,0.0003,2]
[312123457,1705650643532,-6874.56334355,0.0003,4]
[312123459,1705650643541,-308.61065204,0.0003,7]
[312123461,1705650643550,-10860.0,0.0003,5]
[312123463,1705650643560,-1200.0,0.0003,2]
[312123465,1705650643569,-2005.94174082,0.0003,3]
[312123467,1705650643578,-1000.0,0.0003,2]
[312123469,1705650643587,-252.27819338,0.000301,4]
[312123471,1705650643596,-7770.08319596,0.000301,2]
[312123472,1705650643605,-1783.36,0.00030136,2]
[312123474,1705650643614,-153.84,0.00030137,2]
[312123476,1705650643626,-155.0,0.00030137,2]
[312123479,1705650643635,-1000.0,0.00030275,2]
[312123480,1705650643645,-191.31,0.00030465,2]
[312123482,1705650643654,-151.0,0.00030508,7]
[312123484,1705650643665,-154.57593042,0.00030555,2]
[312123487,1705650643676,-215.74383129,0.00030686,2]
[312123488,1705650643687,-7178.38476164,0.00030713,2]
[312123490,1705650643696,-168.0,0.000308,2]
[312123492,1705650643706,-157.22,0.00030822,2]
[312123494,1705650643715,-385.33,0.00030874,2]
[312123497,1705650643724,-214.45069329,0.00031,4]
[312123499,1705650643734,-153.84,0.0003105,2]
[312123501,1705650643743,-151.0,0.00031131,4]
[312123503,1705650643753,-457.32864088,0.00031471,19]
[312123505,1705650643761,-2904.47721536,0.00031486,5]
[312123506,1705650643770,-1000.0,0.000315,2]
[312123509,1705650643781,-240.0,0.000315,2]
[312123511,1705650643792,-1783.36,0.00031506,2]
[312123513,1705650643802,-409.51,0.00031507,2]
[312123514,1705650643811,-155.0,0.00031507,2]
[312123516,1705650643821,-7178.38476164,0.0003156,3]
[312123519,1705650643831,-154.57593042,0.00031576,2]
[312123521,1705650643840,-500.0,0.0003158,2]
[312123523,1705650643850,-197.62,0.00031644,2]
[312123524,1705650643859,-152.15,0.00031659,2]
[312123526,1705650643870,-157.22,0.00031678,2]
[312123528,1705650643881,-4880.5386,0.000317,2]
[312123530,1705650643890,-151.0,0.00031766,2]
[312123532,1705650643899,-410656.435517,0.000318,3]
[312123534,1705650643909,-385.33,0.00031852,2]
[312123536,1705650643919,-5000.0,0.0003189,2]
[312123538,1705650643929,-209.0,0.000319,2]
[312123540,1705650643938,-2656.9417,0.000319,2]
[312123542,1705650643947,-168.0,0.000319,2]
[312123544,1705650643957,-153.84,0.00031963,2]
[312123546,1705650643966,-176.2545833,0.00031978,2]
[312123549,1705650643977,-200.0,0.0003199,7]
[312123550,1705650643986,-200.0,0.0003199,7]
[312123552,1705650643995,-200.0,0.0003199,7]
[312123555,1705650644005,-210.07300978,0.0003199,7]
[312123557,1705650644016,-150.0,0.00031999,2]
[312123559,1705650644027,-150.0,0.00031999,2]
[312123577,1705650644218,-128771.39552287,0.00032,7]
[312123579,1705650644232,-459041.53428746,0.00032,7]
[312123582,1705650644253,-22592.06747877,0.00032,7]
[312123584,1705650644264,-10000.0,0.00032,20]
[312123586,1705650644276,-294.08548322,0.00032,4]
[312123588,1705650644287,-800.0,0.00032,3]
[312123590,1705650644298,-10000.0,0.00032,20]
[312123591,1705650644308,-1065.15514231,0.00032,14]
[312123592,1705650644318,-750.0,0.000323,2]
[312123593,1705650644328,-3575.33303195,0.00032408,4]
[312123594,1705650644340,-876.30395543,0.00032408,4]
[312123595,1705650644356,-704.13939175,0.00032408,4]
[312123597,1705650644377,-350.20110314,0.00032408,4]
[312123600,1705650644392,-502.61833434,0.00032408,4]
[312123659,1705650644937,-210.385,0.00023557,2]
[312123661,1705650644946,-1169.78894503,0.00032408,4]
[312123663,1705650644955,-519.20439533,0.00032421,7]
[312123667,1705650644974,-1543.32883663,0.00032421,7]
[312123669,1705650644986,-1572.90815554,0.00032421,7]
[312123671,1705650645001,-1864.29307751,0.00032421,7]
[312123683,1705650645102,-3394.67273165,0.00032421,7]
[312123685,1705650645111,-11278.018495,0.00032421,7]
[312123687,1705650645123,-5639.0092475,0.00032421,7]
[312123689,1705650645132,-332.65400982,0.00032462,7]
[312123691,1705650645142,-201.94476031,0.00032471,7]
[312123694,1705650645151,-8280.79531498,0.0003248,7]
[312123695,1705650645160,-11274.88091189,0.000325,2]
[312123697,1705650645170,-157.22,0.00032534,2]
[312123699,1705650645181,-154.57593042,0.00032596,2]
[312123702,1705650645190,-457.0,0.000326,5]
[312123703,1705650645200,-49348.23411601,0.00032604,7]
[312123706,1705650645209,-191.31,0.00032729,2]
[312123708,1705650645219,-332.65400982,0.00032801,7]
[312123711,1705650645228,-385.33,0.00032831,2]
[312123713,1705650645238,-1783.36,0.00032876,2]
[312123717,1705650645248,-250.0,0.00032876,2]
[312123720,1705650645258,-153.84,0.00032877,2]
[312123723,1705650645267,-1151.26,0.00032877,15]
[312123725,1705650645277,-200.0,0.00032877,2]
[312123728,1705650645287,-155.0,0.00032877,2]
[312123730,1705650645296,-153.02905067,0.00032888,7]
[312123732,1705650645307,-153.02905067,0.0003289,7]
[312123734,1705650645317,-168.0,0.000329,2]
[312123736,1705650645327,-5425.91014071,0.000329,2]
[312123738,1705650645337,-804.81854007,0.000329,2]
[312123740,1705650645348,-500.0,0.000329,2]
[312123742,1705650645358,-157.96844512,0.00032927,7]
[312123744,1705650645368,-155.26992071,0.00033,4]
[312123746,1705650645378,-5800.0,0.00033,2]
[312123748,1705650645388,-1000.0,0.00033,2]
[312123750,1705650645398,-151.17,0.00033,2]
[312123752,1705650645407,-151.17,0.00033,2]
[312123754,1705650645417,-151.17,0.00033,2]
[312123757,1705650645427,-151.17,0.00033,2]
[312123759,1705650645437,-151.17,0.00033,2]
[312123761,1705650645447,-151.17,0.00033,2]
[312123763,1705650645458,-151.17,0.00033,2]
[312123765,1705650645467,-151.17,0.00033,2]
[312123767,1705650645477,-151.17,0.00033,2]
[312123769,1705650645487,-151.17,0.00033,2]
[312123771,1705650645497,-151.17,0.00033,2]
[312123773,1705650645507,-151.17,0.00033,2]
[312123775,1705650645517,-151.17,0.00033,2]
[312123777,1705650645527,-151.17,0.00033,2]
[312123779,1705650645537,-151.17,0.00033,2]
[312123781,1705650645547,-151.17,0.00033,2]
[312123783,1705650645556,-151.17,0.00033,2]
[312123785,1705650645565,-151.17,0.00033,2]
[312123787,1705650645574,-151.17,0.00033,2]
[312123789,1705650645583,-151.17,0.00033,2]
[312123791,1705650645593,-151.17,0.00033,2]
[312123793,1705650645602,-151.17,0.00033,2]
[312123795,1705650645611,-151.17,0.00033,2]
[312123797,1705650645623,-151.17,0.00033,2]
[312123799,1705650645633,-151.17,0.00033,2]
[312123800,1705650645643,-151.17,0.00033,2]
[312123801,1705650645652,-151.17,0.00033,2]
[312123802,1705650645662,-151.17,0.00033,2]
[312123803,1705650645671,-151.17,0.00033,2]
[312123804,1705650645681,-151.17,0.00033,2]
[312123805,1705650645691,-151.17,0.00033,2]
[312123807,1705650645700,-151.17,0.00033,2]
[312123809,1705650645709,-151.17,0.00033,2]
[312123811,1705650645719,-151.17,0.00033,2]
[312123813,1705650645728,-151.17,0.00033,2]
[312123815,1705650645737,-151.17,0.00033,2]
[312123817,1705650645746,-151.17,0.00033,2]
[312123819,1705650645755,-151.17,0.00033,2]
[312123821,1705650645764,-151.17,0.00033,2]
[312123823,1705650645774,-151.17,0.00033,2]
[312123826,1705650645783,-151.17,0.00033,2]
[312123829,1705650645792,-151.17,0.00033,2]
[312123832,1705650645802,-151.17,0.00033,2]
[312123835,1705650645811,-151.17,0.00033,2]
[312123838,1705650645820,-151.17,0.00033,2]
[312123840,1705650645829,-151.17,0.00033,2]
[312123842,1705650645839,-151.17,0.00033,2]
[312123844,1705650645848,-151.17,0.00033,2]
[312123846,1705650645857,-151.17,0.00033,2]
[312123848,1705650645867,-151.17,0.00033,2]
[312123850,1705650645878,-151.17,0.00033,2]
[312123852,1705650645888,-151.17,0.00033,2]
[312123854,1705650645898,-151.17,0.00033,2]
[312123856,1705650645907,-151.17,0.00033,2]
[312123859,1705650645916,-151.17,0.00033,2]
[312123860,1705650645925,-151.17,0.00033,2]
[312123862,1705650645934,-151.17,0.00033,2]
[312123865,1705650645944,-151.17,0.00033,2]
[312123867,1705650645953,-151.17,0.00033,2]
[312123869,1705650645962,-151.17,0.00033,2]
[312123871,1705650645971,-151.17,0.00033,2]
[312123872,1705650645982,-151.17,0.00033,2]
[312123875,1705650645991,-151.17,0.00033,2]
[312123877,1705650646001,-500.0,0.00033013,7]
[312123879,1705650646011,-1000.0,0.00033027,2]
[312123881,1705650646021,-750.0,0.0003315,7]
[312123883,1705650646031,-159.88433657,0.0003321,7]
[312123885,1705650646040,-205.0,0.00033246,17]
[312123887,1705650646050,-152.08042664,0.00033249,2]
[312123889,1705650646059,-457.32864088,0.00033256,22]
[312123891,1705650646069,-7178.38476164,0.00033256,5]
[312123893,1705650646078,-1000.0,0.00033287,7]
[312123895,1705650646087,-155.68960281,0.00033311,7]
[312123897,1705650646097,-201.94476031,0.00033358,7]
[312123899,1705650646106,-2904.47721536,0.00033364,6]
[312123901,1705650646115,-150.0,0.0003337,2]
[312123903,1705650646128,-941.43,0.00033388,2]
[312123905,1705650646138,-157.22,0.0003339,2]
[312123908,1705650646148,-1250.0,0.00033424,7]
[312123911,1705650646157,-489.71526024,0.000335,4]
[312123914,1705650646167,-250.0,0.000335,6]
[312123917,1705650646177,-332.65400982,0.00033504,7]
[312123920,1705650646186,-151.0,0.00033546,7]
[312123923,1705650646195,-151.0,0.00033546,7]
[312123926,1705650646205,-6847.12647988,0.00033546,2]
[312123929,1705650646215,-1500.0,0.00033561,7]
[312123932,1705650646224,-154.57593042,0.00033617,2]
[312123935,1705650646233,-201.94476031,0.0003362,7]
[312123938,1705650646242,-1750.0,0.00033698,7]
[312123943,1705650646253,-201.94476031,0.00033702,7]
[312123946,1705650646264,-155.68960281,0.00033724,7]
[312123949,1705650646274,-153.84,0.0003379,2]
[312123953,1705650646283,-385.33,0.00033809,2]
[312123957,1705650646293,-2000.0,0.00033835,7]
[312123961,1705650646302,-151.0,0.00033835,7]
[312123965,1705650646312,-152.06639061,0.00033896,7]
[312123969,1705650646321,-152.06639061,0.00033939,7]
[312123973,1705650646330,-2250.0,0.00033972,7]
[312123977,1705650646340,-943.9935458,0.00033998,4]
[312123991,1705650646410,-162.18930337,0.00033998,4]
[312123994,1705650646419,-155.39336726,0.00033998,4]
[312123997,1705650646429,-702.16682463,0.00033998,4]
[312123999,1705650646438,-1969.69217219,0.00034,2]
[312124001,1705650646447,-1053.71553897,0.00034,4]
[312124003,1705650646456,-506.22007375,0.00034,4]
[312124005,1705650646466,-357.81564083,0.00034,2]
[312124007,1705650646475,-1625.00863575,0.00034,4]
[312124009,1705650646484,-1209.94895067,0.00034,4]
[312124011,1705650646494,-1000.0,0.00034,4]
[312124013,1705650646503,-260.30835166,0.00034,4]
[312124015,1705650646512,-155.0,0.00034,4]
[312124017,1705650646521,-500.0,0.00034,2]
[312124019,1705650646530,-176.63392142,0.00034,2]
[312124021,1705650646540,-850.0,0.00034,3]
[312124023,1705650646549,-48074.23408029,0.00034,5]
[312124140,1705650647702,-164.72308444,0.00023556,2]
[312124142,1705650647712,-150.0,0.00027521,2]
[312124144,1705650647721,-150.0,0.00027521,2]
[312124146,1705650647731,-6.34232475,0.00029219,2]
[312124148,1705650647743,-149.50767525,0.00029219,2]
[312124150,1705650647753,-155.85,0.00032319,2]
[312124152,1705650647762,-218.34232485,0.00034,5]
[312124154,1705650647774,-26159.80615523,0.00034,5]
[312124155,1705650647797,-592.53143083,0.00034,5]
[312124156,1705650647809,-373.45767937,0.00034,5]
[312124157,1705650647821,-1374.79618899,0.00034,5]
[312124158,1705650647833,-1051.547,0.00034,5]
[312124159,1705650647845,-3007.09387152,0.00034,5]
[312124160,1705650647857,-6743.90894464,0.00034,5]
[312124161,1705650647880,-500.0,0.00034,5]
[312124162,1705650648031,-5103.12280005,0.00034,5]
[312124163,1705650648048,-932.14062538,0.00034,5]
[312124164,1705650648060,-972.44269312,0.00034,5]
[312124265,1705650678785,3155.38912975,0.00021,2]
[312124266,1705650731698,151.0,0.00029013,120]
[312124267,1705650776574,600.0,0.000217,7]
[312124268,1705650778663,1200.0,0.000218,7]
[312124269,1705650793214,1030.96689148,0.00021364,2]
[312124270,1705650827549,156.4507304,0.00021364,2]
[312124271,1705650828410,155.0,0.00021364,2]
[312124272,1705650830933,168.2489696,5e-05,2]
[312124273,1705650831837,285.13481266,0.00021364,2]
[312124274,1705650833423,-384.72747359,0.00021861,2]
[312124275,1705650833444,-623.0,0.00021862,2]
[312124276,1705650833465,-1800.0,0.000219,7]
[312124277,1705650833486,-715.83,0.000219,2]
[312124278,1705650836452,544.41541712,0.00021364,2]
[312124279,1705650837562,718.94,0.0002189,2]
[312124280,1705650838965,213.08710929,0.00021364,2]
[312124281,1705650838987,79.1325216,0.00021364,2]
[312124282,1705650843076,283.29178074,0.00021364,2]
[312124283,1705650843916,-150.0,0.000219,2]